bitfinex-derivatives/quotes_BTCF0:USTF0_20251220
["timestamp","ask_amount","ask_price","bid_price","bid_amount"]
[1766266120924,0.02640361,88345.0,88331.0,3e-08]
[1766266121124,0.02640361,88344.0,88331.0,3e-08]
[1766266121326,0.02640361,88343.0,88331.0,3e-08]
[1766266121528,0.02640361,88342.0,88331.0,3e-08]
[1766266121726,0.0113241,88347.0,88331.0,3e-08]
[1766266121929,0.02640361,88346.0,88331.0,3e-08]
[1766266122129,0.02640361,88345.0,88331.0,3e-08]
[1766266122328,0.02640361,88344.0,88331.0,3e-08]
[1766266122530,0.02640361,88343.0,88331.0,3e-08]
[1766266122730,0.02640361,88342.0,88331.0,3e-08]
[1766266123030,0.0113241,88347.0,88331.0,3e-08]
[1766266123231,0.02640358,88346.0,88331.0,3e-08]
[1766266123529,0.02640358,88345.0,88331.0,3e-08]
[1766266123832,0.02640358,88344.0,88331.0,3e-08]
[1766266124019,0.02640358,88343.0,88331.0,3e-08]
[1766266124319,0.02640358,88342.0,88331.0,3e-08]
[1766266124524,0.0113241,88347.0,88331.0,3e-08]
[1766266124724,0.02640354,88346.0,88331.0,3e-08]
[1766266124923,0.02640354,88345.0,88331.0,3e-08]
[1766266125124,0.02640354,88344.0,88331.0,3e-08]
[1766266125325,0.02640354,88343.0,88331.0,3e-08]
[1766266125622,0.02640354,88342.0,88331.0,3e-08]
[1766266125821,0.0113241,88347.0,88331.0,3e-08]
[1766266126033,0.02640336,88346.0,88331.0,3e-08]
[1766266126329,0.02640336,88345.0,88331.0,3e-08]
[1766266126631,0.02640336,88344.0,88331.0,3e-08]
[1766266126833,0.02640336,88343.0,88331.0,3e-08]
[1766266127133,0.02640336,88342.0,88331.0,3e-08]
[1766266127333,0.0113241,88347.0,88331.0,3e-08]
[1766266127533,0.02640325,88346.0,88331.0,3e-08]
[1766266127733,0.02640325,88345.0,88331.0,3e-08]
[1766266127934,0.02640325,88344.0,88331.0,3e-08]
[1766266128233,0.02640325,88343.0,88331.0,3e-08]
[1766266128531,0.02640325,88342.0,88331.0,3e-08]
[1766266128832,0.0113241,88347.0,88331.0,3e-08]
[1766266129027,0.02640321,88346.0,88331.0,3e-08]
[1766266129228,0.02640321,88345.0,88331.0,3e-08]
[1766266129442,0.02640321,88344.0,88331.0,3e-08]
[1766266129732,0.02640321,88343.0,88331.0,3e-08]
[1766266129931,0.02640321,88342.0,88331.0,3e-08]
[1766266130133,0.0113241,88347.0,88331.0,3e-08]
[1766266130321,0.0264032,88346.0,88331.0,3e-08]
[1766266130520,0.0264032,88345.0,88331.0,3e-08]
[1766266130729,0.0264032,88344.0,88331.0,3e-08]
[1766266130930,0.0264032,88343.0,88331.0,3e-08]
[1766266131128,0.0264032,88342.0,88331.0,3e-08]
[1766266131333,0.0113241,88347.0,88331.0,3e-08]
[1766266131634,0.02640316,88346.0,88331.0,3e-08]
[1766266131933,0.02640316,88345.0,88331.0,3e-08]
[1766266132134,0.02640316,88344.0,88331.0,3e-08]
[1766266132333,0.02640316,88343.0,88331.0,3e-08]
[1766266132535,0.02640316,88342.0,88331.0,3e-08]
[1766266132730,0.0113245,88344.0,88331.0,3e-08]
[1766266132932,0.02640314,88343.0,88331.0,3e-08]
[1766266133132,0.02640314,88342.0,88331.0,3e-08]
[1766266133332,0.0113245,88344.0,88331.0,3e-08]
[1766266133532,0.02640312,88343.0,88331.0,3e-08]
[1766266133734,0.039684,88348.0,88331.0,3e-08]
[1766266133932,0.02640311,88347.0,88331.0,3e-08]
[1766266134133,0.02640311,88346.0,88331.0,3e-08]
[1766266134333,0.02640311,88345.0,88331.0,3e-08]
[1766266134533,0.02640311,88344.0,88331.0,3e-08]
[1766266134733,0.02640311,88343.0,88331.0,3e-08]
[1766266134937,0.039684,88348.0,88331.0,3e-08]
[1766266135230,0.02640297,88347.0,88331.0,3e-08]
[1766266135431,0.02640297,88346.0,88331.0,3e-08]
[1766266135738,0.02640297,88345.0,88331.0,3e-08]
[1766266135938,0.02640297,88344.0,88331.0,3e-08]
[1766266136138,0.039684,88348.0,88331.0,3e-08]
[1766266136340,0.02640264,88347.0,88331.0,3e-08]
[1766266136539,0.02640264,88346.0,88331.0,3e-08]
[1766266136741,0.02640264,88345.0,88331.0,3e-08]
[1766266136949,0.02640264,88344.0,88331.0,3e-08]
[1766266137144,0.039684,88348.0,88331.0,3e-08]
[1766266137442,0.02640221,88347.0,88331.0,3e-08]
[1766266137641,0.02640221,88346.0,88331.0,3e-08]
[1766266137943,0.02640221,88345.0,88331.0,3e-08]
[1766266138142,0.02640221,88344.0,88331.0,3e-08]
[1766266138342,0.039684,88348.0,88331.0,3e-08]
[1766266138545,0.02640159,88347.0,88331.0,3e-08]
[1766266138743,0.02640159,88346.0,88331.0,3e-08]
[1766266139043,0.02640159,88345.0,88331.0,3e-08]
[1766266139243,0.02640159,88344.0,88331.0,3e-08]
[1766266139442,0.039684,88348.0,88331.0,3e-08]
[1766266139743,0.02640138,88347.0,88331.0,3e-08]
[1766266139942,0.02640138,88346.0,88331.0,3e-08]
[1766266140141,0.02640138,88345.0,88331.0,3e-08]
[1766266140342,0.02640138,88344.0,88331.0,3e-08]
[1766266140534,0.039684,88348.0,88331.0,3e-08]
[1766266140734,0.02646337,88347.0,88331.0,3e-08]
[1766266140947,0.02646337,88346.0,88331.0,3e-08]
[1766266141147,0.02646337,88345.0,88332.0,0.0113259]
[1766266141449,0.02646337,88344.0,88332.0,0.0113259]
[1766266141647,0.02836,88348.0,88332.0,0.0113259]
[1766266141849,0.0264632,88347.0,88332.0,0.0113259]
[1766266142049,0.0264632,88346.0,88331.0,3e-08]
[1766266142241,0.0264632,88345.0,88331.0,3e-08]
[1766266142546,0.0264632,88344.0,88331.0,3e-08]
[1766266142845,0.02836,88348.0,88331.0,3e-08]
[1766266143046,0.02646308,88347.0,88331.0,3e-08]
[1766266143245,0.02646308,88346.0,88331.0,3e-08]
[1766266143448,0.02646308,88345.0,88331.0,3e-08]
[1766266143648,0.02646308,88344.0,88331.0,3e-08]
[1766266143841,0.02646308,88343.0,88331.0,3e-08]
[1766266144041,0.02836,88348.0,88331.0,3e-08]
[1766266144245,0.02646291,88347.0,88331.0,3e-08]
[1766266144450,0.03778711,88346.0,88331.0,3e-08]
[1766266144747,0.02646291,88345.0,88331.0,3e-08]
[1766266144934,0.02646291,88344.0,88331.0,3e-08]
[1766266145140,0.02646291,88343.0,88331.0,3e-08]
[1766266145340,0.0113242,88346.0,88331.0,3e-08]
[1766266145540,0.02646285,88345.0,88331.0,3e-08]
[1766266145736,0.02646285,88344.0,88331.0,3e-08]
[1766266145941,0.02646285,88343.0,88331.0,3e-08]
[1766266146149,0.0113242,88346.0,88331.0,3e-08]
[1766266146351,0.02646281,88345.0,88331.0,3e-08]
[1766266146652,0.011325,88340.0,88331.0,3e-08]
[1766266152448,0.0113245,88344.0,88331.0,3e-08]
[1766266152649,0.02646342,88343.0,88331.0,3e-08]
[1766266152950,0.02646342,88342.0,88331.0,3e-08]
[1766266153150,0.02646342,88341.0,88331.0,3e-08]
[1766266153354,0.0113245,88344.0,88331.0,3e-08]
[1766266153652,0.02646287,88343.0,88331.0,3e-08]
[1766266153849,0.02646287,88342.0,88331.0,3e-08]
[1766266154047,0.02646287,88341.0,88331.0,3e-08]
[1766266154247,0.0113245,88344.0,88331.0,3e-08]
[1766266154447,0.02646223,88343.0,88331.0,3e-08]
[1766266154649,0.02646223,88342.0,88331.0,3e-08]
[1766266154850,0.02646223,88341.0,88331.0,3e-08]
[1766266155057,0.0113245,88344.0,88331.0,3e-08]
[1766266155248,0.02646172,88343.0,88331.0,3e-08]
[1766266155448,0.02646172,88342.0,88331.0,3e-08]
[1766266155649,0.02646172,88341.0,88331.0,3e-08]
[1766266155858,0.0113245,88344.0,88331.0,3e-08]
[1766266156055,0.02646163,88343.0,88331.0,3e-08]
[1766266156254,0.02646163,88342.0,88331.0,3e-08]
[1766266156553,0.02646163,88341.0,88331.0,3e-08]
[1766266156748,0.0113245,88344.0,88331.0,3e-08]
[1766266156947,0.02646114,88343.0,88331.0,3e-08]
[1766266157154,0.02646114,88342.0,88331.0,3e-08]
[1766266157354,0.02646114,88341.0,88331.0,3e-08]
[1766266157555,0.0113245,88344.0,88331.0,3e-08]
[1766266157751,0.02646007,88343.0,88331.0,3e-08]
[1766266158043,0.02646007,88342.0,88331.0,3e-08]
[1766266158248,0.0113245,88344.0,88331.0,3e-08]
[1766266158461,0.02646012,88343.0,88331.0,3e-08]
[1766266158755,0.02646012,88342.0,88331.0,3e-08]
[1766266158956,0.0113245,88344.0,88331.0,3e-08]
[1766266159157,0.02646001,88343.0,88331.0,3e-08]
[1766266159357,0.02646001,88342.0,88331.0,3e-08]
[1766266159556,0.0113245,88344.0,88331.0,3e-08]
[1766266159758,0.02645996,88343.0,88331.0,3e-08]
[1766266159953,0.02645996,88342.0,88331.0,3e-08]
[1766266160258,0.0113245,88344.0,88331.0,3e-08]
[1766266160454,0.02645991,88343.0,88331.0,3e-08]
[1766266160653,0.02645991,88342.0,88331.0,3e-08]
[1766266160854,0.0113245,88344.0,88331.0,3e-08]
[1766266161057,0.02645991,88343.0,88331.0,3e-08]
[1766266161255,0.02645991,88342.0,88331.0,3e-08]
[1766266161454,0.0113245,88344.0,88331.0,3e-08]
[1766266161654,0.02645987,88343.0,88331.0,3e-08]
[1766266161855,0.02645987,88342.0,88331.0,3e-08]
[1766266162056,0.0113245,88344.0,88331.0,3e-08]
[1766266162355,0.02645987,88343.0,88331.0,3e-08]
[1766266162555,0.02645987,88342.0,88331.0,3e-08]
[1766266162756,0.0113245,88344.0,88331.0,3e-08]
[1766266162957,0.02645982,88343.0,88331.0,3e-08]
[1766266163255,0.0113245,88344.0,88331.0,3e-08]
[1766266163256,0.02645982,88342.0,88331.0,3e-08]
[1766266163558,0.0113245,88344.0,88331.0,3e-08]
[1766266163758,0.02645979,88343.0,88331.0,3e-08]
[1766266163959,0.02645979,88342.0,88331.0,3e-08]
[1766266164262,0.0113245,88344.0,88331.0,3e-08]
[1766266164562,0.02645976,88343.0,88331.0,3e-08]
[1766266164757,0.02645976,88342.0,88331.0,3e-08]
[1766266164957,0.0113245,88344.0,88331.0,3e-08]
[1766266165261,0.02645975,88343.0,88331.0,3e-08]
[1766266165463,0.011324,88348.0,88331.0,3e-08]
[1766266165658,0.0264594,88347.0,88331.0,3e-08]
[1766266165858,0.0264594,88346.0,88331.0,3e-08]
[1766266166061,0.0264594,88345.0,88331.0,3e-08]
[1766266166263,0.0264594,88344.0,88331.0,3e-08]
[1766266166461,0.0264594,88343.0,88331.0,3e-08]
[1766266166760,0.02836,88349.0,88331.0,3e-08]
[1766266166962,0.02645921,88348.0,88331.0,3e-08]
[1766266167158,0.02836,88349.0,88331.0,3e-08]
[1766266167159,0.02645921,88347.0,88332.0,0.0113259]
[1766266167364,0.02645921,88346.0,88332.0,0.0113259]
[1766266167557,0.02645921,88345.0,88332.0,0.0113259]
[1766266167863,0.02836,88349.0,88332.0,0.0113259]
[1766266167864,0.02645921,88344.0,88332.0,0.0113259]
[1766266168064,0.02645921,88343.0,88332.0,0.0113259]
[1766266168363,0.02836,88349.0,88332.0,0.0113259]
[1766266168563,0.02645903,88348.0,88332.0,0.0113259]
[1766266168756,0.02645903,88347.0,88332.0,0.0113259]
[1766266168959,0.02645903,88346.0,88332.0,0.0113259]
[1766266169152,0.02645903,88345.0,88332.0,0.0113259]
[1766266169355,0.02645903,88344.0,88332.0,0.0113259]
[1766266169550,0.02645903,88343.0,88332.0,0.0113259]
[1766266169749,0.02836,88349.0,88332.0,0.0113259]
[1766266169955,0.026459,88348.0,88332.0,0.0113259]
[1766266170152,0.026459,88347.0,88332.0,0.0113259]
[1766266170364,0.026459,88346.0,88332.0,0.0113259]
[1766266170560,0.026459,88345.0,88332.0,0.0113259]
[1766266170755,0.026459,88344.0,88332.0,0.0113259]
[1766266170953,0.026459,88343.0,88332.0,0.0113259]
[1766266171155,0.02836,88349.0,88332.0,0.0113259]
[1766266171357,0.02649484,88348.0,88332.0,0.0113259]
[1766266171566,0.02649484,88347.0,88332.0,0.0113259]
[1766266171755,0.02649484,88346.0,88332.0,0.0113259]
[1766266171951,0.02649484,88345.0,88332.0,0.0113259]
[1766266172165,0.02649484,88344.0,88332.0,0.0113259]
[1766266172365,0.02649484,88343.0,88332.0,0.0113259]
[1766266172664,0.02836,88349.0,88332.0,0.0113259]
[1766266172865,0.02649482,88348.0,88332.0,0.0113259]
[1766266173064,0.02649482,88347.0,88332.0,0.0113259]
[1766266173264,0.02649482,88346.0,88332.0,0.0113259]
[1766266173464,0.02649482,88345.0,88332.0,0.0113259]
[1766266173664,0.02649482,88344.0,88332.0,0.0113259]
[1766266173869,0.02649482,88343.0,88332.0,0.0113259]
[1766266174064,0.02836,88349.0,88332.0,0.0113259]
[1766266174266,0.03781868,88348.0,88331.0,3e-08]
[1766266174472,0.02649478,88347.0,88331.0,3e-08]
[1766266174659,0.02649478,88346.0,88331.0,3e-08]
[1766266174859,0.02649478,88345.0,88331.0,3e-08]
[1766266175060,0.02649478,88344.0,88331.0,3e-08]
[1766266175260,0.02649478,88343.0,88331.0,3e-08]
[1766266175469,0.0113239,88348.0,88331.0,3e-08]
[1766266175768,0.02649475,88347.0,88331.0,3e-08]
[1766266175968,0.02649475,88346.0,88331.0,3e-08]
[1766266176170,0.02649475,88345.0,88331.0,3e-08]
[1766266176469,0.02649475,88344.0,88331.0,3e-08]
[1766266176658,0.02649475,88343.0,88331.0,3e-08]
[1766266176860,0.0113239,88348.0,88331.0,3e-08]
[1766266177056,0.02649474,88347.0,88331.0,3e-08]
[1766266177265,0.02649474,88346.0,88331.0,3e-08]
[1766266177467,0.02649474,88345.0,88331.0,3e-08]
[1766266177668,0.02649474,88344.0,88331.0,3e-08]
[1766266177870,0.02649474,88343.0,88331.0,3e-08]
[1766266178072,0.0113239,88348.0,88331.0,3e-08]
[1766266178369,0.02649464,88347.0,88331.0,3e-08]
[1766266178572,0.02649464,88346.0,88331.0,3e-08]
[1766266178765,0.02649464,88345.0,88331.0,3e-08]
[1766266178971,0.02649464,88344.0,88331.0,3e-08]
[1766266179161,0.0113239,88348.0,88331.0,3e-08]
[1766266179162,0.02649464,88343.0,88331.0,3e-08]
[1766266179362,0.0113239,88348.0,88331.0,3e-08]
[1766266179557,0.0264946,88347.0,88331.0,3e-08]
[1766266179866,0.0264946,88346.0,88331.0,3e-08]
[1766266180061,0.0264946,88345.0,88331.0,3e-08]
[1766266180257,0.0264946,88344.0,88331.0,3e-08]
[1766266180465,0.0264946,88343.0,88331.0,3e-08]
[1766266180658,0.0113239,88348.0,88331.0,3e-08]
[1766266180861,0.02649455,88347.0,88331.0,3e-08]
[1766266181063,0.02649455,88346.0,88331.0,3e-08]
[1766266181259,0.02649455,88345.0,88331.0,3e-08]
[1766266181561,0.02649455,88344.0,88331.0,3e-08]
[1766266181763,0.02649455,88343.0,88331.0,3e-08]
[1766266181975,0.0113239,88348.0,88331.0,3e-08]
[1766266182172,0.0264945,88347.0,88331.0,3e-08]
[1766266182371,0.0264945,88346.0,88331.0,3e-08]
[1766266182571,0.0264945,88345.0,88331.0,3e-08]
[1766266182772,0.0264945,88344.0,88331.0,3e-08]
[1766266182973,0.0264945,88343.0,88331.0,3e-08]
[1766266183174,0.0113239,88348.0,88331.0,3e-08]
[1766266183370,0.02649474,88347.0,88331.0,3e-08]
[1766266183575,0.02649474,88346.0,88331.0,3e-08]
[1766266183776,0.02649474,88345.0,88331.0,3e-08]
[1766266184076,4e-08,88344.0,88331.0,3e-08]
[1766266184278,0.0113215,88367.0,88343.0,0.0113245]
[1766266184477,0.012842,88364.0,88343.0,0.0113245]
[1766266185164,0.012842,88364.0,88341.0,0.02432]
[1766266185677,0.01149203,88361.0,88341.0,0.02432]
[1766266190378,0.0113227,88358.0,88341.0,0.02432]
[1766266191280,0.0113227,88358.0,88338.0,0.01348]
[1766266192482,0.0113231,88355.0,88338.0,0.01348]
[1766266196181,0.0113234,88353.0,88338.0,0.01348]
[1766266196381,0.0257348,88352.0,88338.0,0.01348]
[1766266196582,0.0257348,88351.0,88338.0,0.01348]
[1766266196782,0.0257348,88350.0,88338.0,0.01348]
[1766266197082,0.0113234,88353.0,88338.0,0.01348]
[1766266197283,0.0257346,88352.0,88338.0,0.01348]
[1766266197476,0.0113237,88350.0,88338.0,0.02836]
[1766266197682,0.0113237,88350.0,88336.0,0.02836]
[1766266197877,0.02573533,88349.0,88331.0,3e-08]
[1766266198076,0.22803396,88350.0,88331.0,3e-08]
[1766266198077,0.02573533,88348.0,88331.0,3e-08]
[1766266198376,0.22803396,88350.0,88331.0,3e-08]
[1766266198574,0.025736,88349.0,88331.0,3e-08]
[1766266198888,0.0113243,88345.0,88331.0,3e-08]
[1766266200882,0.0113239,88349.0,88331.0,3e-08]
[1766266201581,0.02836,88352.0,88332.0,0.0113259]
[1766266201780,0.02506835,88351.0,88332.0,0.0113259]
[1766266201981,0.02506835,88350.0,88332.0,0.0113259]
[1766266202183,0.01232,88351.0,88332.0,0.0113259]
[1766266202384,0.02506794,88350.0,88332.0,0.0113259]
[1766266202683,0.01232,88351.0,88332.0,0.0113259]
[1766266202881,0.02506788,88350.0,88332.0,0.0113259]
[1766266203080,0.02506788,88349.0,88332.0,0.0113259]
[1766266203282,0.01232,88351.0,88332.0,0.0113259]
[1766266203483,0.02506845,88350.0,88332.0,0.0113259]
[1766266203683,0.02506845,88349.0,88332.0,0.0113259]
[1766266203885,0.01232,88351.0,88332.0,0.0113259]
[1766266204182,0.02506845,88350.0,88332.0,0.0113259]
[1766266204386,0.02506845,88349.0,88332.0,0.0113259]
[1766266204585,0.01232,88351.0,88332.0,0.0113259]
[1766266204784,0.0250688,88350.0,88332.0,0.0113259]
[1766266204985,0.0250688,88349.0,88332.0,0.0113259]
[1766266205183,0.01232,88351.0,88332.0,0.0113259]
[1766266205383,0.02506918,88350.0,88332.0,0.0113259]
[1766266205585,0.02506918,88349.0,88332.0,0.0113259]
[1766266205779,0.01232,88351.0,88332.0,0.0113259]
[1766266205978,0.02506887,88350.0,88332.0,0.0113259]
[1766266206179,0.01232,88351.0,88332.0,0.0113259]
[1766266206380,0.02506931,88350.0,88332.0,0.0113259]
[1766266206583,0.01232,88351.0,88332.0,0.0113259]
[1766266206782,0.02506931,88350.0,88332.0,0.0113259]
[1766266207078,0.01232,88351.0,88332.0,0.0113259]
[1766266207276,0.02506979,88350.0,88332.0,0.0113259]
[1766266207486,0.01232,88351.0,88332.0,0.0113259]
[1766266207688,0.02506979,88350.0,88332.0,0.0113259]
[1766266207891,0.02506979,88349.0,88335.0,0.0113255]
[1766266208088,0.02506979,88348.0,88335.0,0.0113255]
[1766266208285,0.01232,88351.0,88335.0,0.0113255]
[1766266208488,0.02507058,88350.0,88335.0,0.0113255]
[1766266208682,0.02507058,88349.0,88335.0,0.0113255]
[1766266208994,0.02507058,88348.0,88335.0,0.0113255]
[1766266209189,0.01232,88351.0,88335.0,0.0113255]
[1766266209389,0.0250711,88350.0,88335.0,0.0113255]
[1766266209688,0.0250711,88349.0,88335.0,0.0113255]
[1766266209888,0.0250711,88348.0,88335.0,0.0113255]
[1766266210089,0.01232,88351.0,88335.0,0.0113255]
[1766266210291,0.02507163,88350.0,88331.0,3e-08]
[1766266210479,0.02507163,88349.0,88331.0,3e-08]
[1766266210684,0.02507163,88348.0,88331.0,3e-08]
[1766266210884,0.0113237,88350.0,88331.0,3e-08]
[1766266211084,0.02507163,88349.0,88331.0,3e-08]
[1766266211284,0.02507163,88348.0,88331.0,3e-08]
[1766266211485,0.02507233,88347.0,88331.0,3e-08]
[1766266211779,0.011324,88348.0,88331.0,3e-08]
[1766266211987,0.02507234,88347.0,88331.0,3e-08]
[1766266212280,0.011324,88348.0,88331.0,3e-08]
[1766266212479,0.02507287,88347.0,88331.0,3e-08]
[1766266212682,0.011324,88348.0,88331.0,3e-08]
[1766266212888,0.02507288,88347.0,88331.0,3e-08]
[1766266213086,0.011324,88348.0,88331.0,3e-08]
[1766266213296,0.02507343,88347.0,88331.0,3e-08]
[1766266213498,0.011324,88348.0,88331.0,3e-08]
[1766266213699,0.0113242,88346.0,88331.0,3e-08]
[1766266219399,0.23934164,88350.0,88331.0,3e-08]
[1766266219611,0.011324,88348.0,88331.0,3e-08]
[1766266219813,0.02507563,88347.0,88331.0,3e-08]
[1766266220010,0.011324,88348.0,88331.0,3e-08]
[1766266220313,0.02507573,88347.0,88331.0,3e-08]
[1766266220508,0.011324,88348.0,88331.0,3e-08]
[1766266220812,0.02507629,88347.0,88331.0,3e-08]
[1766266221012,0.011324,88348.0,88331.0,3e-08]
[1766266221214,0.02507629,88347.0,88331.0,3e-08]
[1766266221410,0.011324,88348.0,88331.0,3e-08]
[1766266221608,0.02507695,88347.0,88331.0,3e-08]
[1766266221907,0.011324,88348.0,88331.0,3e-08]
[1766266222114,0.02507695,88347.0,88331.0,3e-08]
[1766266222308,0.011324,88348.0,88331.0,3e-08]
[1766266222499,0.02507773,88347.0,88331.0,3e-08]
[1766266222698,0.011324,88348.0,88331.0,3e-08]
[1766266222903,0.02507773,88347.0,88331.0,3e-08]
[1766266223216,0.011324,88348.0,88331.0,3e-08]
[1766266223417,0.02507857,88347.0,88331.0,3e-08]
[1766266223616,0.011324,88348.0,88331.0,3e-08]
[1766266223815,0.0113243,88345.0,88331.0,3e-08]
[1766266226108,0.0113239,88349.0,88331.0,3e-08]
[1766266226313,0.0113241,88347.0,88332.0,0.0092]
[1766266226511,0.02508208,88346.0,88332.0,0.0092]
[1766266226714,0.0113241,88347.0,88332.0,0.0092]
[1766266226915,0.02508207,88346.0,88332.0,0.0092]
[1766266227119,0.0113241,88347.0,88332.0,0.0092]
[1766266227418,0.02508431,88346.0,88332.0,0.0092]
[1766266227718,0.0113241,88347.0,88332.0,0.0092]
[1766266227920,0.0113241,88347.0,88331.0,3e-08]
[1766266237423,0.25637784,88350.0,88331.0,3e-08]
[1766266237617,0.02503717,88349.0,88331.0,3e-08]
[1766266237821,0.02503717,88348.0,88331.0,3e-08]
[1766266238018,0.02503717,88347.0,88331.0,3e-08]
[1766266238222,0.02503717,88346.0,88331.0,3e-08]
[1766266238422,0.25637784,88350.0,88331.0,3e-08]
[1766266238423,0.0113238,88349.0,88331.0,3e-08]
[1766266238622,0.02503732,88348.0,88331.0,3e-08]
[1766266238821,0.02503732,88347.0,88331.0,3e-08]
[1766266239017,0.02503732,88346.0,88331.0,3e-08]
[1766266239320,0.0113238,88349.0,88331.0,3e-08]
[1766266239521,0.02503732,88348.0,88331.0,3e-08]
[1766266239720,0.02503732,88347.0,88331.0,3e-08]
[1766266239919,0.02503732,88346.0,88331.0,3e-08]
[1766266240122,0.0113238,88349.0,88331.0,3e-08]
[1766266240315,0.0250375,88348.0,88331.0,3e-08]
[1766266240516,0.0250375,88347.0,88331.0,3e-08]
[1766266240723,0.0250375,88346.0,88331.0,3e-08]
[1766266240924,0.0113238,88349.0,88331.0,3e-08]
[1766266241124,0.0250375,88348.0,88331.0,3e-08]
[1766266241324,0.0250375,88347.0,88331.0,3e-08]
[1766266241525,0.0363618,88346.0,88331.0,3e-08]
[1766266241724,0.0113243,88346.0,88331.0,3e-08]
[1766266246029,0.26770154,88350.0,88331.0,3e-08]
[1766266246222,0.0250378,88349.0,88331.0,3e-08]
[1766266246422,0.0250378,88348.0,88331.0,3e-08]
[1766266246624,0.0250378,88347.0,88331.0,3e-08]
[1766266246816,0.0250378,88346.0,88331.0,3e-08]
[1766266247022,0.26770154,88350.0,88331.0,3e-08]
[1766266247326,0.011324,88348.0,88331.0,0.02836003]
[1766266247630,0.0250378,88347.0,88331.0,0.02836003]
[1766266266648,0.26770865,88350.0,88331.0,0.02836003]
[1766266266849,0.02511626,88349.0,88331.0,0.02836003]
[1766266267050,0.02511626,88348.0,88331.0,0.02836003]
[1766266267245,0.02511626,88347.0,88331.0,0.02836003]
[1766266267449,0.26770865,88350.0,88331.0,0.02836003]
[1766266267647,0.02511625,88349.0,88331.0,0.02836003]
[1766266267849,0.02511625,88348.0,88331.0,0.02836003]
[1766266268042,0.02511625,88347.0,88331.0,0.02836003]
[1766266268256,0.26770865,88350.0,88331.0,0.02836003]
[1766266268449,0.02511627,88349.0,88331.0,0.02836003]
[1766266268651,0.02511627,88348.0,88331.0,0.02836003]
[1766266268850,0.02511627,88347.0,88331.0,0.02836003]
[1766266269149,0.26770865,88350.0,88331.0,0.02836003]
[1766266269455,0.011324,88348.0,88331.0,0.02836003]
[1766266269752,0.02511633,88347.0,88331.0,0.02836003]
[1766266269955,0.02511633,88346.0,88331.0,0.02836003]
[1766266270155,0.25638495,88350.0,88331.0,0.02836003]
[1766266270453,0.02511652,88349.0,88331.0,0.02836003]
[1766266270655,0.02511652,88348.0,88331.0,0.02836003]
[1766266270855,0.02511652,88347.0,88331.0,0.02836003]
[1766266271055,0.02511652,88346.0,88331.0,0.02836003]
[1766266271255,0.26770865,88350.0,88331.0,0.02836003]
[1766266271456,0.02511665,88349.0,88331.0,0.02836003]
[1766266271655,0.02511665,88348.0,88331.0,0.02836003]
[1766266271856,0.02511665,88347.0,88331.0,0.02836003]
[1766266272054,0.02511665,88346.0,88331.0,0.02836003]
[1766266272253,0.26770865,88350.0,88331.0,0.02836003]
[1766266272455,0.02511681,88349.0,88331.0,0.02836003]
[1766266272654,0.02511681,88348.0,88331.0,0.02836003]
[1766266272856,0.02511681,88347.0,88331.0,0.02836003]
[1766266273056,0.02511681,88346.0,88331.0,0.02836003]
[1766266273357,0.0396837,88350.0,88331.0,0.02836003]
[1766266273553,0.02511697,88349.0,88331.0,0.02836003]
[1766266273753,0.02511697,88348.0,88331.0,0.02836003]
[1766266274054,0.02511697,88347.0,88331.0,0.02836003]
[1766266274357,0.02511697,88346.0,88331.0,0.02836003]
[1766266274557,0.0396837,88350.0,88331.0,0.02836003]
[1766266274759,0.02511732,88349.0,88331.0,0.02836003]
[1766266274958,0.02511732,88348.0,88331.0,0.02836003]
[1766266275258,0.02511732,88347.0,88331.0,0.02836003]
[1766266275457,0.02511732,88346.0,88331.0,0.02836003]
[1766266275760,0.0396837,88350.0,88331.0,0.02836003]
[1766266275957,0.02511755,88349.0,88331.0,0.02836003]
[1766266276157,0.02511755,88348.0,88331.0,0.02836003]
[1766266276346,0.02511755,88347.0,88331.0,0.02836003]
[1766266276549,0.02511755,88346.0,88331.0,0.02836003]
[1766266276750,0.0396837,88350.0,88331.0,0.02836003]
[1766266276954,0.02511765,88349.0,88331.0,0.02836003]
[1766266277161,0.02511765,88348.0,88331.0,0.02836003]
[1766266277362,0.02511765,88347.0,88331.0,0.02836003]
[1766266277662,0.02511765,88346.0,88331.0,0.02836003]
[1766266277858,0.0396837,88350.0,88331.0,0.02836003]
[1766266278157,0.02511757,88349.0,88331.0,0.02836003]
[1766266278461,0.02511757,88348.0,88331.0,0.02836003]
[1766266278759,0.02511757,88347.0,88331.0,0.02836003]
[1766266278960,0.02511757,88346.0,88331.0,0.02836003]
[1766266279160,0.0396837,88350.0,88331.0,0.02836003]
[1766266279349,0.02511757,88349.0,88331.0,0.02836003]
[1766266279550,0.02511757,88348.0,88331.0,0.02836003]
[1766266279749,0.02511757,88347.0,88331.0,0.02836003]
[1766266279946,0.02511757,88346.0,88331.0,0.02836003]
[1766266280253,0.0396837,88350.0,88331.0,0.02836003]
[1766266280462,0.02511759,88349.0,88331.0,0.02836003]
[1766266280662,0.02511759,88348.0,88331.0,0.02836003]
[1766266280959,0.02511759,88347.0,88331.0,0.02836003]
[1766266281160,0.02511759,88346.0,88331.0,0.02836003]
[1766266281363,0.0396837,88350.0,88331.0,0.02836003]
[1766266281553,0.02511768,88349.0,88331.0,0.02836003]
[1766266281753,0.02511768,88348.0,88331.0,0.02836003]
[1766266282050,0.03644178,88347.0,88331.0,0.02836003]
[1766266282255,0.02511768,88346.0,88331.0,0.02836003]
[1766266282456,0.0113241,88347.0,88331.0,0.02836003]
[1766266282656,0.02511764,88346.0,88331.0,0.02836003]
[1766266282863,0.02836,88350.0,88331.0,0.02836003]
[1766266283060,0.0113242,88346.0,88331.0,0.02836003]
[1766266284964,0.0113242,88346.0,88331.0,3e-08]
[1766266299874,0.0113246,88343.0,88331.0,3e-08]
[1766266306370,0.0396442,88347.0,88331.0,3e-08]
[1766266306571,0.0251987,88346.0,88331.0,3e-08]
[1766266306772,0.0396442,88347.0,88331.0,3e-08]
[1766266307072,0.0251987,88346.0,88331.0,3e-08]
[1766266307271,0.0396442,88347.0,88331.0,3e-08]
[1766266307571,0.02519857,88346.0,88331.0,3e-08]
[1766266307771,0.0396442,88347.0,88331.0,3e-08]
[1766266307979,0.02519857,88346.0,88331.0,3e-08]
[1766266308280,0.0396442,88347.0,88331.0,3e-08]
[1766266308478,0.02519853,88346.0,88331.0,3e-08]
[1766266308782,0.0396442,88347.0,88331.0,3e-08]
[1766266308966,0.02519881,88346.0,88331.0,3e-08]
[1766266309171,0.0396442,88347.0,88331.0,3e-08]